bitfinex-derivatives/quotes_ETHF0:USTF0_20250828
["timestamp","ask_amount","ask_price","bid_price","bid_amount"]
[1756351850120,1.3497,4544.3,4544.2,0.1884]
[1756351850424,1.3497,4544.2,4544.1,3.79228]
[1756351850825,0.9388,4544.2,4544.1,3.79228]
[1756351851019,0.2909,4544.2,4544.1,3.79228]
[1756351851219,0.9388,4544.2,4544.1,3.79228]
[1756351851934,1.2447,4544.2,4544.1,3.79228]
[1756351854838,1.6383,4544.2,4544.1,3.3962]
[1756351855239,1.6383,4544.2,4544.1,3.2078]
[1756351856432,5.6383,4544.2,4544.1,3.2078]
[1756351856630,0.268,4543.8,4543.7,40.8]
[1756351856832,0.399,4543.6,4543.5,3.2078]
[1756351857037,1.6706,4543.6,4543.5,3.3959]
[1756351857634,1.6706,4543.6,4543.5,3.2078]
[1756351858031,1.6706,4543.6,4543.5,3.3959]
[1756351858230,1.6706,4543.6,4543.5,3.2078]
[1756351858631,1.6706,4543.6,4543.5,3.3959]
[1756351859239,3.2078,4545.0,4543.5,3.3959]
[1756351859240,3.2078,4545.0,4543.6,0.39612]
[1756351859443,1.6706,4544.2,4544.1,0.58418]
[1756351859739,1.68343588,4544.2,4544.1,0.58418]
[1756351860340,1.68343588,4544.2,4544.1,0.1881]
[1756351860735,1.68985382,4544.2,4544.1,0.1881]
[1756351861139,1.68985382,4544.2,4544.0,3.60389]
[1756351861140,1.6706,4544.1,4544.0,3.2078]
[1756351861740,1.69627176,4544.1,4544.0,3.2078]
[1756351862737,0.3059,4544.0,4543.5,3.2078]
[1756351862934,1.3665,4542.9,4542.8,3.3958]
[1756351863138,1.6706,4542.9,4542.8,3.3958]
[1756351863437,0.3059,4543.2,4543.1,0.3055]
[1756351863641,0.3059,4543.5,4543.4,0.188]
[1756351863943,1.30724554,4543.5,4543.4,3.3958]
[1756351864139,1.70084554,4543.5,4543.4,3.3958]
[1756351864540,1.30724554,4543.5,4543.4,3.3958]
[1756351864741,0.33614554,4543.5,4543.4,3.5133]
[1756351865944,0.53034554,4543.5,4543.4,3.5133]
[1756351866139,0.53034554,4543.5,4543.4,3.3958]
[1756351866140,1.70084554,4543.5,4543.4,3.3958]
[1756351866742,1.30724554,4543.5,4543.4,3.3958]
[1756351867045,0.64024554,4543.5,4543.4,3.5133]
[1756351867245,0.33614554,4543.5,4543.4,3.5133]
[1756351867548,1.70084554,4543.5,4543.4,3.3958]
[1756351868347,1.70726409,4543.5,4543.4,3.3958]
[1756351869249,1.71368264,4543.5,4543.4,3.3958]
[1756351870145,1.72010119,4543.5,4543.4,3.2078]
[1756351870642,1.72010119,4543.5,4543.4,3.3958]
[1756351871044,0.65950119,4543.5,4543.4,3.3958]
[1756351871352,0.66591974,4543.5,4543.4,3.3958]
[1756351871552,0.66591974,4543.5,4543.4,3.5133]
[1756351872045,0.61,4543.5,4543.4,3.5133]
[1756351872248,0.67049108,4543.5,4543.4,3.5133]
[1756351872651,0.86469108,4543.5,4543.4,3.5133]
[1756351873647,0.3041,4544.8,4544.7,0.1975]
[1756351873954,0.3041,4544.8,4544.7,3.6273]
[1756351874444,0.3041,4545.0,4544.7,3.4053]
[1756351874645,0.3041,4545.0,4544.9,0.4195]
[1756351875044,0.6977,4546.0,4545.9,0.1975]
[1756351875344,1.3647,4546.0,4545.9,0.1975]
[1756351875745,0.6977,4546.6,4546.4,0.4195]
[1756351875952,0.61,4546.5,4546.4,0.4195]
[1756351876151,0.3059,4546.5,4546.4,44.4273]
[1756351876451,0.61,4546.7,4546.6,0.4195]
[1756351876953,1.0036,4546.6,4546.4,44.0078]
[1756351877154,1.4764,4546.5,4546.4,44.0078]
[1756351877850,1.6706,4546.5,4546.4,3.4053]
[1756351878046,1.6706,4546.5,4546.4,3.2078]
[1756351878849,1.6706,4546.5,4546.4,3.4053]
[1756351879357,1.6706,4545.9,4545.8,3.4053]
[1756351879850,1.6706,4545.9,4545.8,3.2078]
[1756351880147,1.68992432,4545.9,4545.8,3.2078]
[1756351880350,1.68992432,4545.9,4545.8,3.4053]
[1756351881141,1.69636576,4545.9,4545.8,3.4053]
[1756351882449,0.64022152,4545.9,4545.8,3.4031]
[1756351882748,1.72382152,4545.9,4545.8,3.2078]
[1756351883155,1.72382152,4545.9,4545.8,3.4031]
[1756351884954,1.72382152,4545.9,4545.8,3.2078]
[1756351885751,1.72382152,4545.9,4545.3,3.2078]
[1756351885957,1.6744,4545.4,4545.3,3.2078]
[1756351886156,1.6744,4544.8,4544.7,3.4031]
[1756351886454,0.03022152,4544.8,4544.7,3.6237]
[1756351887151,0.03022152,4544.8,4544.7,7.6237]
[1756351887558,0.2848,4545.4,4545.3,0.3857]
[1756351887751,0.2848,4545.4,4545.3,3.5935]
[1756351888756,0.5908,4545.4,4545.3,3.5935]
[1756351889158,0.7844,4545.4,4545.3,3.5935]
[1756351889554,0.60368286,4545.4,4545.3,3.5935]
[1756351889756,0.01288286,4545.4,4545.3,3.5935]
[1756351889960,0.01594592,4545.4,4545.3,3.5935]
[1756351890257,0.30074592,4545.4,4545.3,3.5935]
[1756351890457,1.69034592,4545.4,4545.3,3.4031]
[1756351891759,1.27164592,4545.4,4545.3,3.4031]
[1756351892051,1.69034592,4545.4,4545.3,3.4031]
[1756351893661,0.60674592,4545.4,4545.3,3.4031]
[1756351893851,0.60674592,4545.4,4545.3,3.5935]
[1756351894158,1.69034592,4545.4,4545.3,3.4031]
[1756351894860,1.27164592,4545.4,4545.3,3.4031]
[1756351895463,1.69034592,4545.4,4545.3,3.4031]
[1756351896163,1.27164592,4545.4,4545.3,3.4031]
[1756351896354,0.60674592,4545.4,4545.3,3.5935]
[1756351897256,0.01594592,4545.4,4545.3,3.5935]
[1756351902164,0.60674592,4545.4,4545.3,3.5935]
[1756351902363,1.69034592,4545.4,4545.3,3.4031]
[1756351903364,1.69034592,4545.4,4545.3,3.5935]
[1756351903566,0.60674592,4545.4,4545.3,3.5935]
[1756351904568,1.69034592,4545.4,4545.3,3.4031]
[1756351905772,0.6649,4544.8,4544.7,3.2078]
[1756351905964,1.6744,4544.8,4544.7,3.2078]
[1756351906169,1.69034592,4544.8,4544.7,3.4031]
[1756351906870,1.69034592,4544.8,4544.7,3.2078]
[1756351907264,5.91037592,4544.8,4544.2,3.2078]
[1756351907463,0.2783,4543.9,4543.8,2.78596574]
[1756351907669,1.6744,4543.9,4543.8,2.78596574]
[1756351908170,5.69034592,4543.9,4543.8,2.78596574]
[1756351908871,7.07474433,4543.9,4543.8,2.78596574]
[1756351911971,0.2804,4546.0,4545.9,0.4188]
[1756351912275,0.8821,4546.5,4545.9,3.6266]
[1756351912872,1.0817,4546.5,4546.4,0.2001]
[1756351913073,1.3621,4546.5,4546.4,0.2001]
[1756351913975,1.6436,4546.5,4546.4,0.2001]
[1756351915375,1.6436,4546.5,4546.4,3.4079]
[1756351915981,0.2815,4547.1,4547.0,0.2001]
[1756351916171,1.6436,4547.1,4547.0,0.2001]
[1756351916366,3.2078,4547.3,4547.0,0.2001]
[1756351916580,0.2804,4547.7,4547.2,0.4188]
[1756351916877,0.9741,4547.9,4547.2,0.2001]
[1756351917776,1.6436,4547.3,4547.1,3.2078]
[1756351917976,22.5336,4547.2,4547.1,3.2078]
[1756351918779,0.6695,4546.6,4546.5,3.4079]
[1756351918979,1.6436,4546.6,4546.5,3.4079]
[1756351919680,1.2314,4546.6,4546.5,3.4079]
[1756351919874,1.2314,4546.6,4546.5,3.6266]
[1756351920073,1.6436,4546.6,4546.5,3.4079]
[1756351920276,1.6436,4546.6,4546.5,3.4125]
[1756351920675,1.2314,4546.6,4546.5,3.4125]
[1756351921380,0.5619,4546.6,4546.5,3.6325]
[1756351921584,1.3632,4546.9,4546.8,0.2029]
[1756351921777,0.951,4546.9,4546.8,0.4247]
[1756351921982,1.2314,4546.9,4546.8,0.4247]
[1756351923086,1.2314,4546.9,4546.8,0.2047]
[1756351924086,1.6436,4546.9,4546.8,0.2047]
[1756351925083,5.16951692,4552.6,4546.8,0.2047]
[1756351925084,0.00373727,4549.0,4548.9,1.6355]
[1756351925278,0.67323727,4549.0,4548.9,3.2078]
[1756351925483,3.08123727,4549.0,4548.4,3.2078]
[1756351926179,0.67323727,4549.0,4548.4,3.2078]
[1756351926373,0.6695,4548.5,4547.7,3.4942]
[1756351926683,0.6695,4548.5,4547.7,3.2078]
[1756351927086,0.6695,4547.8,4547.7,4.1642]
[1756351927288,16.3231,4547.8,4547.7,4.8433]
[1756351927473,20.938,4548.6,4548.3,0.2001]
[1756351927682,1.6436,4548.4,4548.3,0.9564]
[1756351927976,0.6695,4547.9,4547.8,40.8]
[1756351928181,1.6436,4547.9,4547.8,41.7655]
[1756351928384,1.3621,4547.9,4547.8,41.7655]
[1756351928681,21.6726,4548.2,4547.9,0.9655]
[1756351928982,22.6236,4548.2,4548.1,1.3475]
[1756351929485,22.6236,4548.2,4547.8,0.288]
[1756351929681,1.6436,4547.8,4547.7,4.5553]
[1756351930681,1.6436,4547.8,4547.7,4.15373762]
[1756351930882,0.2804,4548.0,4547.8,0.2864]
[1756351931186,1.3621,4548.0,4547.9,1.6355]
[1756351931484,10.4061,4548.0,4547.9,1.6355]
[1756351931986,1.3621,4548.0,4547.9,1.6355]
[1756351932188,18.64,4548.1,4548.0,0.6775]
[1756351932490,20.0021,4548.1,4548.0,1.6355]
[1756351934282,20.2836,4548.1,4547.7,3.19733762]
[1756351934584,1.6436,4547.8,4547.7,3.19733762]
[1756351935582,0.6695,4547.2,4546.5,3.8869]
[1756351935780,1.6436,4546.7,4546.5,3.2078]
[1756351936087,1.6436,4546.6,4546.5,3.4079]
[1756351936287,20.93,4547.1,4546.6,0.6775]
[1756351936477,1.6436,4546.6,4546.5,4.8433]
[1756351936786,1.3621,4546.6,4546.5,4.8433]
[1756351936986,0.9499,4546.6,4546.5,4.8433]
[1756351937581,1.6436,4546.6,4546.5,4.8433]
[1756351937781,1.6436,4546.6,4546.5,4.5553]
[1756351937987,1.6436,4546.6,4546.5,3.2078]
[1756351938585,1.0817,4545.9,4545.8,3.4079]
[1756351938785,1.6436,4545.9,4545.8,4.5553]
[1756351938990,1.3621,4545.9,4545.8,4.8433]
[1756351939483,0.9499,4545.9,4545.8,4.8433]
[1756351940088,0.4699,4545.9,4545.8,4.8433]
[1756351941183,1.0817,4545.9,4545.8,4.8433]
[1756351941490,1.3621,4545.9,4545.8,4.8433]
[1756351942283,1.6557,4545.9,4545.8,4.8433]
[1756351942881,1.6557,4545.9,4545.8,3.4079]
[1756351943090,1.6815,4545.4,4545.3,1.6637]
[1756351943390,0.428,4545.7,4545.3,0.6529]
[1756351943689,0.2936,4545.9,4545.6,0.6529]
[1756351943894,1.3879,4545.8,4545.7,1.6637]
[1756351944088,0.6643,4545.8,4545.7,1.6637]
[1756351944489,1.6815,4545.8,4545.7,0.1871]
[1756351944689,1.6815,4545.8,4545.4,0.2987]
[1756351944888,0.9579,4545.4,4545.3,0.1871]
[1756351945100,22.5415,4545.4,4545.3,0.1871]
[1756351945391,22.5415,4545.4,4545.3,1.3565]
[1756351945691,22.5415,4545.4,4545.3,0.9516]
[1756351945995,22.5415,4545.4,4545.3,1.6637]
[1756351946389,22.5415,4545.4,4545.3,1.3565]
[1756351946593,0.5892,4547.3,4547.2,1.3755]
[1756351946792,1.6815,4547.3,4547.2,4.5833]
[1756351946992,1.6815,4547.3,4547.2,4.2846]
[1756351947398,1.6815,4547.3,4547.2,3.8607]
[1756351947787,1.6815,4547.3,4547.2,3.3949]
[1756351948190,1.6815,4547.3,4547.2,3.2078]
[1756351948497,1.6815,4547.3,4547.2,4.2846]
[1756351948690,0.5892,4547.3,4547.2,4.5833]
[1756351948891,2.7682,4547.5,4547.2,4.2565]
[1756351949194,3.4325,4547.5,4547.4,1.0768]
[1756351949491,3.8605,4547.5,4547.4,1.0768]
[1756351949694,3.8605,4547.5,4547.4,0.8997]
[1756351950698,3.8605,4547.5,4547.4,0.1871]
[1756351950890,3.8605,4547.5,4547.2,3.2078]
[1756351951087,1.6815,4547.3,4547.2,3.3949]
[1756351952399,1.6815,4547.3,4547.2,3.6417]
[1756351952797,1.6815,4547.3,4547.2,3.2078]
[1756351953694,1.6815,4547.3,4547.2,3.3949]
[1756351953897,1.6815,4547.3,4547.2,4.1075]
[1756351956394,1.6815,4547.3,4547.2,4.2846]
[1756351956600,20.955,4547.3,4547.2,4.97911]
[1756351956902,22.2085,4547.6,4547.5,1.77129]
[1756351957201,22.6365,4547.6,4547.5,1.29549]
[1756351957802,22.6365,4547.6,4547.5,1.47259]
[1756351959205,22.6365,4547.6,4547.5,1.77129]
[1756351960007,22.6365,4547.6,4547.5,1.47259]
[1756351960709,22.6365,4547.6,4547.5,1.29549]
[1756351961100,0.9579,4547.3,4547.2,3.79071]
[1756351961301,1.6815,4547.3,4547.2,4.50331]
[1756351961703,1.6815,4547.3,4547.2,4.68041]
[1756351961904,1.6815,4547.3,4547.2,4.97911]
[1756351962806,1.6815,4547.3,4547.2,3.79071]
[1756351963308,1.6815,4547.3,4547.2,3.3949]
[1756351964010,1.6815,4547.3,4547.2,3.6417]
[1756351964308,1.6815,4547.3,4547.2,4.5833]
[1756351965012,1.6815,4547.3,4547.2,4.1075]
[1756351965200,1.6815,4547.3,4547.2,3.2078]
[1756351966313,1.6815,4547.3,4547.2,3.3949]
[1756351967013,1.6815,4547.0,4546.9,1.0768]
[1756351967208,22.5425,4547.0,4546.9,1.0768]
[1756351967415,22.5415,4547.0,4546.9,1.3755]
[1756351967824,22.5415,4547.0,4546.9,1.0768]
[1756351968322,22.5415,4547.0,4546.9,0.1871]
[1756351968526,22.5415,4547.0,4546.7,3.2078]
[1756351968725,21.5243,4547.0,4546.9,0.1871]
[1756351969022,21.5243,4547.0,4546.9,0.4339]
[1756351969414,22.5415,4547.0,4546.9,0.4339]
[1756351969617,22.5415,4547.0,4546.9,0.1871]
[1756351969918,0.6643,4546.8,4546.7,3.2078]
[1756351970119,1.6815,4546.8,4546.7,3.6417]
[1756351970421,1.6815,4546.8,4546.7,4.1075]
[1756351970727,1.6815,4546.8,4546.7,3.4546]
[1756351971019,1.6815,4546.8,4546.7,3.2078]
[1756351971221,1.6815,4546.3,4546.2,0.1871]
[1756351971427,1.6815,4546.3,4545.7,0.5453]
[1756351971428,22.5075,4546.3,4545.7,0.5453]
[1756351971627,0.6599,4545.8,4545.6,3.2078]
[1756351971826,22.4621,4545.7,4545.6,3.2078]
[1756351972026,22.4691,4545.7,4545.6,3.6536]
[1756351972326,22.4691,4545.7,4545.6,4.1249]
[1756351972725,22.4691,4545.7,4545.6,3.2078]
[1756351972922,22.4691,4545.7,4545.1,0.2466]
[1756351973227,0.2893,4545.6,4545.1,0.4236]
[1756351973419,1.6301,4545.5,4545.4,0.1992]
[1756351974628,0.6599,4545.2,4545.1,0.2466]
[1756351974829,22.4621,4545.2,4545.1,0.4458]
[1756351975229,21.4919,4545.2,4545.0,3.2078]
[1756351975431,1.6301,4545.1,4545.0,3.2078]
[1756351975929,1.6301,4545.1,4544.6,0.2466]
[1756351976231,1.6301,4544.6,4544.5,4.3019]
[1756351976432,22.4451,4544.6,4544.5,4.3019]
[1756351976625,22.4451,4544.6,4544.5,3.6536]
[1756351976820,22.4451,4544.6,4544.5,3.407]
[1756351977028,22.4451,4544.6,4544.5,3.2078]
[1756351980233,0.6834,4544.5,4544.0,3.2078]
[1756351980528,1.1483,4544.1,4544.0,3.2078]
[1756351980733,21.9443,4544.1,4544.0,3.2078]
[1756351980920,1.1483,4543.6,4543.5,3.2078]
[1756351981120,21.9403,4543.6,4543.5,3.2078]
[1756351983126,25.38338706,4543.6,4542.5,0.4201]
[1756351983329,0.4845,4542.6,4542.5,1.1783]
[1756351983638,21.7189,4542.6,4542.5,1.1783]
[1756351984530,21.7189,4542.6,4542.5,0.8914]
[1756351985734,21.7189,4542.6,4542.5,0.7005]
[1756351986737,21.7189,4542.6,4542.5,0.2804]
[1756351987037,0.9389,4542.3,4542.2,1.1783]
[1756351988632,0.1952,4543.5,4543.4,0.4713]
[1756351988839,0.1952,4543.5,4543.4,1.1783]
[1756351989337,0.9389,4543.8,4543.7,1.1783]
[1756351989538,21.8839,4543.8,4543.7,1.1783]
[1756351990130,21.8839,4543.8,4543.7,0.7005]
[1756351990332,21.8839,4543.8,4543.7,1.1783]
[1756351990733,0.9389,4543.8,4543.7,1.1783]
[1756351990940,21.8809,4543.8,4543.7,1.1783]
[1756351992636,21.8809,4543.8,4543.7,0.2804]
[1756351992837,0.4845,4543.2,4543.1,1.1783]
[1756351993139,0.4845,4543.2,4543.1,1.3984]
[1756351993340,0.4845,4543.2,4543.1,1.1783]
[1756351993834,0.1952,4543.2,4543.1,1.1783]
[1756351994338,20.916,4543.3,4543.1,1.57446]
[1756351994532,21.5852,4543.3,4543.2,1.1783]
[1756351994734,21.8549,4543.3,4543.2,1.1783]
[1756351998838,0.9389,4543.3,4543.2,1.1783]
[1756352000241,0.6692,4543.3,4543.2,1.1783]
[1756352000436,0.6496,4543.0,4542.9,3.6279]
[1756352000643,0.9389,4543.0,4542.9,3.2078]
[1756352002346,0.964,4542.5,4542.4,0.7065]
[1756352002549,21.814,4542.5,4542.4,0.7065]
[1756352002844,21.814,4542.5,4541.5,40.8]
[1756352002845,0.4841,4542.4,4542.1,0.4297]
[1756352003040,0.4841,4542.2,4542.1,0.7065]
[1756352003240,0.964,4542.2,4542.1,0.7065]
[1756352003440,0.964,4542.2,4542.1,0.9028]
[1756352003844,0.964,4542.2,4542.1,1.2056]
[1756352007245,0.964,4542.2,4542.1,0.7065]
[1756352007441,0.964,4542.2,4542.1,0.9028]
[1756352007645,0.964,4542.2,4542.1,1.2056]
[1756352008044,21.779,4542.2,4542.1,1.2056]
[1756352008749,22.2621,4542.2,4542.1,1.3931]
[1756352008953,22.2621,4542.2,4542.1,1.0903]
[1756352009153,22.2621,4542.2,4542.1,1.3931]
[1756352012152,0.6831,4541.9,4541.8,3.2078]
[1756352012350,22.2241,4541.9,4541.8,3.2078]
[1756352018651,0.3981,4541.4,4541.3,3.88093]
[1756352018856,21.7227,4541.4,4541.3,4.99723]
[1756352021553,21.7227,4541.4,4541.3,4.6009]
[1756352023950,21.6807,4541.4,4541.3,4.6009]
[1756352029259,21.6807,4541.4,4541.3,4.1106]
[1756352029459,21.6807,4541.4,4541.3,3.4846]
[1756352029861,0.3981,4541.1,4541.0,1.0093]
[1756352030060,0.9777,4541.1,4541.0,0.2768]
[1756352030355,0.9777,4541.1,4540.7,0.97598]
[1756352030561,0.6936,4540.8,4540.7,1.0093]
[1756352030760,0.199,4540.6,4540.5,0.82609]
[1756352030960,21.6297,4540.6,4540.5,0.82609]
[1756352032565,21.6297,4540.6,4540.5,1.39989]
[1756352034569,21.6107,4540.6,4540.5,1.39989]
[1756352034865,21.6107,4540.6,4540.5,2.06919]
[1756352035867,21.6107,4540.6,4540.5,1.78269]
[1756352038668,21.6107,4540.6,4540.5,1.59519]
[1756352041469,0.6822,4540.6,4540.5,2.30243]
[1756352041666,1.4915,4541.3,4541.2,2.06483]
[1756352041969,0.6748,4541.8,4541.7,1.1068]
[1756352042169,0.9705,4541.8,4541.7,1.382]
[1756352042466,0.6931,4541.8,4541.6,0.3963]
[1756352042670,0.4773,4541.0,4540.9,1.77836]
[1756352042868,0.3974,4541.8,4541.7,0.39629]
[1756352043067,11.0285,4541.8,4541.7,1.77829]
[1756352043464,11.0285,4541.8,4541.7,1.1815]
[1756352043767,0.2957,4542.1,4542.0,0.39626]
[1756352043969,0.9705,4542.6,4542.5,2.06472]
[1756352044267,0.6931,4542.6,4542.5,2.06472]
[1756352044468,0.4932,4542.6,4542.5,2.28486]
[1756352044770,0.4932,4542.6,4542.5,2.06472]
[1756352045470,0.6931,4542.6,4542.5,2.06472]
[1756352045665,0.9705,4542.6,4542.5,1.77822]
[1756352047767,0.6931,4542.6,4542.5,2.06472]
[1756352047972,0.4932,4542.6,4542.5,2.06472]
[1756352049968,0.9705,4542.6,4542.5,2.06472]
[1756352051070,0.4932,4542.6,4542.5,2.06472]
[1756352051665,0.9705,4542.6,4542.5,1.77822]
[1756352051969,0.9705,4542.6,4542.5,2.06472]
[1756352052164,0.9705,4542.6,4542.5,1.77822]
[1756352053476,20.625,4542.8,4542.7,0.3962]
[1756352053670,21.1182,4542.8,4542.7,1.0672]
[1756352053975,21.1182,4542.8,4542.7,2.0647]
[1756352054469,0.773,4542.6,4542.5,0.39622]
[1756352054663,20.625,4542.8,4542.3,3.2078]
[1756352054863,0.9705,4541.9,4541.8,3.2078]
[1756352055062,21.5835,4541.9,4541.8,3.2078]
[1756352055964,21.5825,4541.9,4541.8,4.0923]
[1756352056165,21.5825,4541.9,4541.8,4.5898]
[1756352056572,21.5825,4541.9,4541.8,4.3893]
[1756352056772,0.9705,4541.9,4541.8,4.5898]
[1756352056970,21.5785,4541.9,4541.8,4.5898]
[1756352057374,21.5785,4541.9,4541.8,4.3893]
[1756352057669,21.5785,4541.9,4541.5,1.3825]
[1756352057670,0.1975,4541.6,4541.5,1.3825]
[1756352057974,0.9705,4541.6,4541.5,1.5778]
[1756352058965,0.9705,4541.4,4541.3,3.2078]
[1756352059168,0.9705,4541.4,4541.3,4.194]
[1756352059371,0.9705,4541.4,4541.3,4.3893]
[1756352059567,0.9705,4541.4,4541.3,4.5898]
[1756352060577,0.9705,4541.4,4541.3,3.483]
[1756352060777,0.9705,4541.4,4541.3,3.2078]
[1756352061386,0.9673,4541.1,4541.0,0.67155]
[1756352061680,21.5493,4541.1,4541.0,0.67155]
[1756352062180,0.3761,4540.9,4540.8,1.07026]
[1756352062479,0.9673,4540.9,4540.8,1.07026]
[1756352062681,0.9673,4540.9,4540.8,1.35026]
[1756352062977,0.9673,4540.9,4540.8,1.73936]
[1756352064180,0.2878,4540.9,4540.8,2.02616]
[1756352066785,0.4736,4540.9,4540.8,2.02616]
[1756352069484,0.6631,4540.9,4540.8,2.02616]
[1756352070383,20.543,4541.2,4540.9,0.39636]
[1756352070575,0.2878,4541.1,4541.0,1.6298]
[1756352070980,0.4736,4541.1,4541.0,1.6298]
[1756352071488,0.9665,4541.1,4541.0,1.6298]
[1756352073383,5.98286092,4541.1,4540.3,0.4017]
[1756352073588,2.35385091,4540.4,4540.0,0.28]
[1756352073786,0.9673,4539.9,4539.8,1.343]
[1756352075185,0.9673,4539.9,4539.8,0.6613]
[1756352075390,0.9673,4539.9,4539.8,1.343]
[1756352076092,3.8865,4540.6,4540.5,1.343]
[1756352076289,24.4103,4540.6,4540.5,1.343]
[1756352076487,24.4103,4540.6,4540.5,0.475]
[1756352076789,24.6981,4540.6,4540.5,0.2722]
[1756352077184,24.6981,4540.6,4540.5,1.343]
[1756352078086,3.2078,4540.6,4540.5,2.0262]
[1756352079089,4.1743,4540.6,4540.5,2.0262]
[1756352079291,4.1751,4540.6,4540.5,1.7394]
[1756352079495,4.1743,4540.6,4540.5,2.0262]
[1756352079794,3.6814,4540.6,4540.5,2.0262]
[1756352080385,4.1743,4540.6,4540.5,1.7394]
[1756352080593,4.1743,4540.6,4540.5,2.0262]
[1756352080895,4.1743,4540.6,4540.5,1.7394]
[1756352081098,4.1751,4540.6,4540.5,1.7394]
[1756352082399,24.3749,4540.6,4540.5,2.0262]
[1756352083091,23.7118,4540.6,4540.5,2.0262]
[1756352083292,20.7918,4540.6,4540.5,5.234]
[1756352083494,20.9776,4540.6,4540.5,5.234]
[1756352083696,20.504,4540.6,4540.5,5.234]
[1756352084504,20.7918,4540.6,4540.5,5.234]
[1756352084807,20.9776,4540.6,4540.5,5.234]
[1756352085804,21.4705,4540.6,4540.5,5.234]
[1756352085997,21.4705,4540.6,4540.5,4.9472]
[1756352087307,21.4713,4540.6,4540.5,4.9472]
[1756352087508,21.4655,4541.0,4540.9,1.73936]
[1756352087708,21.4663,4541.0,4540.9,1.73936]
[1756352089211,21.4663,4541.0,4540.9,2.02616]
[1756352089505,0.6631,4541.0,4540.9,2.02616]
[1756352089802,21.1621,4541.0,4540.9,1.6298]
[1756352090197,21.4655,4541.0,4540.9,1.6298]
[1756352090913,0.6795,4542.0,4541.9,1.1567]
[1756352091103,11.7605,4542.0,4541.9,0.2722]
[1756352091608,12.0536,4542.0,4541.9,0.2722]
[1756352093707,12.0536,4542.0,4541.9,1.1476]
[1756352094309,0.9726,4542.0,4541.9,1.3488]
[1756352094614,0.9718,4542.0,4541.9,1.3488]
[1756352095113,0.9718,4542.0,4541.9,1.1476]
[1756352095311,0.9718,4542.0,4541.9,1.6369]
[1756352095611,0.9718,4542.0,4541.9,1.3488]
[1756352099907,0.9718,4542.0,4541.8,0.39628]
[1756352100116,0.9824,4541.9,4541.8,1.53168]
[1756352100504,0.9824,4541.9,4541.8,1.73288]
[1756352100709,0.9824,4541.9,4541.8,1.1354]
[1756352100911,0.9824,4541.9,4541.8,0.8508]
[1756352101107,0.9824,4541.9,4541.6,3.2078]
[1756352101108,0.6893,4541.7,4541.6,3.2078]
[1756352101308,21.4764,4541.7,4541.6,3.6539]
[1756352101516,21.4764,4541.7,4541.6,4.3432]
[1756352102016,21.4764,4541.7,4541.6,4.0586]
[1756352102316,21.4764,4541.7,4541.6,3.4678]
[1756352102815,21.4764,4541.7,4541.6,3.8725]
[1756352103608,0.9824,4541.7,4541.6,4.2598]
[1756352103805,0.9824,4542.5,4542.4,0.9319]
[1756352104009,0.9824,4542.5,4542.4,1.6247]
[1756352104221,0.6831,4542.5,4542.4,1.6247]
[1756352104814,8.929,4542.8,4542.3,0.39623]
[1756352104815,0.9824,4542.4,4542.3,0.39623]
[1756352105422,0.9824,4542.4,4542.3,1.24703]
[1756352105620,0.9824,4542.4,4542.3,1.53163]
[1756352106420,21.4744,4542.4,4542.3,1.53163]
[1756352106819,21.4744,4542.4,4542.3,1.1354]
[1756352108023,21.4744,4542.4,4542.3,0.8508]
[1756352108610,21.4744,4542.4,4542.3,1.1354]
[1756352108810,21.4744,4542.4,4542.3,1.3366]
[1756352110422,0.9824,4542.4,4542.3,1.3366]
[1756352110619,34.9278,4543.2,4542.9,0.39618]
[1756352110824,0.9824,4543.0,4542.9,1.3366]
[1756352112321,0.6831,4543.0,4542.9,1.6247]
[1756352112528,0.39,4544.0,4543.9,1.0434]
[1756352112728,0.39,4544.0,4543.9,1.7362]
[1756352113026,0.1967,4544.0,4543.9,2.0208]
[1756352114619,0.2931,4544.3,4544.2,0.39607]
[1756352114925,0.1967,4544.5,4544.4,2.02075]
[1756352115526,0.4898,4544.5,4544.4,2.02075]
[1756352117124,0.6831,4544.5,4544.4,2.02075]
[1756352117323,0.6831,4544.5,4544.4,1.6247]
[1756352117525,10.831,4544.6,4544.5,2.02075]
[1756352117824,3.2078,4545.0,4544.5,2.02075]
[1756352117825,0.1967,4545.1,4545.0,2.0207]
[1756352118027,0.4898,4545.1,4545.0,2.0207]
[1756352118427,20.484,4545.2,4545.1,0.2881]
[1756352118621,20.484,4545.2,4545.1,1.6247]
[1756352119019,20.9738,4545.2,4545.1,1.6247]
[1756352119217,21.3069,4545.2,4545.1,1.6247]
[1756352119828,0.8229,4545.2,4545.1,1.6247]
[1756352120024,0.8229,4545.2,4545.1,4.8325]
[1756352120226,0.8229,4545.9,4545.8,1.6247]
[1756352120432,0.8229,4545.9,4545.8,1.3366]
[1756352121527,0.5297,4545.7,4545.5,0.4156]
[1756352121730,0.8131,4545.6,4545.5,1.3435]
[1756352122026,0.8131,4545.6,4545.5,0.9279]
[1756352122329,0.3899,4545.6,4545.3,0.5469]
[1756352122533,0.1921,4545.4,4545.3,2.03488]
[1756352123525,0.8131,4545.4,4545.3,1.6389]
[1756352123730,0.4755,4545.4,4545.3,2.03488]
[1756352124231,0.8131,4545.4,4545.3,2.03488]
[1756352124428,0.2834,4545.6,4545.5,0.39596]
[1756352124635,0.8131,4545.6,4545.5,1.73946]
[1756352124827,0.8131,4545.6,4545.5,2.03486]